[Event "Marshall CC FIDE Premier February 2024"]
[Site "New York"]
[Date "2024.02.03"]
[Round "1.1"]
[White "Chakka, Pardhav"]
[Black "Bortnyk, Mykola"]
[Result "0-1"]
[ECO "A40"]
[WhiteElo "1938"]
[BlackElo "2421"]
[Annotator "RC"]
[PlyCount "76"]
[EventDate "2024.02.02"]
[EventType "swiss"]
[EventCountry "USA"]
[SourceTitle "playchess.com"]
[Source "ChessBase"]
[SourceQuality "1"]
[TimeControl "5400+30"]

1. d4 {[%emt 0:01:35]} g6 {[%emt 0:00:15]} 2. c4 {[%emt 0:00:09]} Bg7 {[%emt 0:00:07]} 3. Nc3 {[%emt 0:00:03]} c5 {[%emt 0:01:48]} 4. d5 {[%emt 0:00:48]} f5 {[%emt 0:00:43]} 5. d6 {[%emt 0:06:47]} Bxc3+ {[%emt 0:06:33]} 6. bxc3 {[%emt 0:00:06]} exd6 {[%emt 0:00:50]} 7. g3 {[%emt 0:04:20]} Qf6 {[%emt 0:00:22]} 8. Bg2 {[%emt 0:15:54]} Nc6 {[%emt 0:02:09]} 9. Nf3 {[%emt 0:01:26]} Nge7 {[%emt 0:05:46]} 10. O-O {[%emt 0:02:39]} b6 {[%emt 0:03:44]} 11. Bf4 {[%emt 0:02:07]} Bb7 {[%emt 0:02:59]} 12. Bxd6 {[%emt 0:02:08]} O-O-O {[%emt 0:03:42]} 13. a4 {[%emt 0:04:56]} Rhe8 {[%emt 0:03:39]} 14. a5 {[%emt 0:08:36]} Nxa5 {[%emt 0:00:42]} 15. Rxa5 {[%emt 0:00:02]} bxa5 {[%emt 0:00:07]} 16. Qd2 {[%emt 0:00:18]} Nc6 {[%emt 0:04:13]} 17. Rb1 {[%emt 0:01:02]} Rxe2 {[%emt 0:01:28]} 18. Qxe2 {[%emt 0:01:22]} Qxd6 {[%emt 0:00:02]} 19. Ng5 {[%emt 0:02:18]} Qc7 {[%emt 0:06:30]} 20. Nf7 {[%emt 0:03:07]} Rf8 {[%emt 0:00:12]} 21. Bd5 {[%emt 0:08:52]} a4 {[%emt 0:01:27]} 22. Qe3 {[%emt 0:04:56]} Nd8 {[%emt 0:10:33]} 23. Nxd8 {[%emt 0:17:58]} Bxd5 {[%emt 0:00:15]} 24. cxd5 {[%emt 0:00:01]} Rxd8 {[%emt 0:03:30]} 25. Qe2 {[%emt 0:01:32]} Qd6 {[%emt 0:02:21]} 26. Qc4 {[%emt 0:00:32]} Re8 {[%emt 0:04:42]} 27. Rb5 {[%emt 0:02:00]} a6 {[%emt 0:04:46]} 28. Rxc5+ {[%emt 0:01:28]} Kb7 {[%emt 0:00:01]} 29. Kg2 {[%emt 0:00:53]} Re4 {[%emt 0:00:35]} 30. Rb5+ {[%emt 0:03:09]} axb5 {[%emt 0:00:08]} 31. Qxb5+ {[%emt 0:00:01]} Kc8 {[%emt 0:00:26]} 32. c4 {[%emt 0:00:20]} a3 {[%emt 0:00:13]} 33. Kh3 {[%emt 0:02:31]} g5 {[%emt 0:00:28]} 34. Kg2 {[%emt 0:00:37]} Kd8 {[%emt 0:00:47]} 35. h3 {[%emt 0:00:42]} Ke7 {[%emt 0:00:12]} 36. Qa4 {[%emt 0:00:46]} Kf7 {[%emt 0:00:26]} 37. Qc2 {[%emt 0:00:06]} Qe5 {[%emt 0:00:18]} 38. Qa4 {[%emt 0:00:31]} Qxd5 {[%emt 0:00:06]} 0-1

[Event "Marshall CC FIDE Premier February 2024"]
[Site "New York"]
[Date "2024.02.03"]
[Round "1.2"]
[White "Chasin, Nico"]
[Black "Zhu, Linxi"]
[Result "1/2-1/2"]
[ECO "A59"]
[WhiteElo "2437"]
[BlackElo "1868"]
[Annotator "RC"]
[PlyCount "93"]
[EventDate "2024.02.02"]
[EventType "swiss"]
[EventCountry "USA"]
[SourceTitle "playchess.com"]
[Source "ChessBase"]
[SourceQuality "1"]
[TimeControl "5400+30"]

1. d4 {[%emt 0:10:49]} Nf6 {[%emt 0:00:14]} 2. c4 {[%emt 0:00:06]} c5 {[%emt 0:00:06]} 3. d5 {[%emt 0:00:09]} b5 {[%emt 0:00:40]} 4. cxb5 {[%emt 0:01:26]} a6 {[%emt 0:00:12]} 5. bxa6 {[%emt 0:00:13]} g6 {[%emt 0:00:07]} 6. Nc3 {[%emt 0:00:19]} Bxa6 {[%emt 0:00:06]} 7. e4 {[%emt 0:00:06]} Bxf1 {[%emt 0:00:05]} 8. Kxf1 {[%emt 0:00:02]} d6 {[%emt 0:00:14]} 9. Nf3 {[%emt 0:00:02]} Bg7 {[%emt 0:00:17]} 10. g3 {[%emt 0:00:01]} O-O {[%emt 0:00:28]} 11. Kg2 {[%emt 0:00:01]} Nbd7 {[%emt 0:02:18]} 12. h3 {[%emt 0:00:01]} Qa5 {[%emt 0:01:02]} 13. Re1 {[%emt 0:00:02]} Rfb8 {[%emt 0:01:43]} 14. a4 {[%emt 0:00:01]} Ne8 {[%emt 0:01:26]} 15. Ra3 {[%emt 0:00:03]} Nc7 {[%emt 0:01:09]} 16. Re2 {[%emt 0:01:24]} Nb6 {[%emt 0:04:00]} 17. Bg5 {[%emt 0:02:42]} Nc4 {[%emt 0:01:23]} 18. Rb3 {[%emt 0:00:56]} Kf8 {[%emt 0:07:34]} 19. e5 {[%emt 0:03:26]} dxe5 {[%emt 0:03:56]} 20. Ne4 {[%emt 0:05:03]} Nd6 {[%emt 0:06:56]} 21. Rc3 {[%emt 0:01:28]} Na6 {[%emt 0:19:09]} 22. Qc2 {[%emt 0:05:55]} Nb4 {[%emt 0:03:21]} 23. Qd2 {[%emt 0:00:02]} Nxe4 {[%emt 0:04:54]} 24. Rxe4 {[%emt 0:00:02]} Rd8 {[%emt 0:05:57]} 25. Nxe5 {[%emt 0:29:50]} f6 {[%emt 0:01:51]} 26. Nc4 {[%emt 0:02:53]} Qc7 {[%emt 0:03:44]} 27. Ne3 {[%emt 0:07:31]} Rxa4 {[%emt 0:05:55]} 28. Bf4 {[%emt 0:03:23]} Qb7 {[%emt 0:01:43]} 29. Kh2 {[%emt 0:01:03]} e5 {[%emt 0:05:16]} 30. Bxe5 {[%emt 0:02:03]} fxe5 {[%emt 0:00:17]} 31. Rxc5 {[%emt 0:00:04]} Na6 {[%emt 0:04:29]} 32. Rcc4 {[%emt 0:02:14]} Rxc4 {[%emt 0:01:54]} 33. Rxc4 {[%emt 0:00:01]} Kg8 {[%emt 0:01:51]} 34. Qc2 {[%emt 0:03:00]} Bh6 {[%emt 0:04:04]} 35. Ng4 {[%emt 0:00:39]} Bg7 {[%emt 0:00:05]} 36. Rc6 {[%emt 0:00:08]} Nb8 {[%emt 0:01:40]} 37. Rc5 {[%emt 0:04:19]} Nd7 {[%emt 0:04:41]} 38. Rc6 {[%emt 0:00:09]} Nb8 {[%emt 0:00:06]} 39. Rc7 {[%emt 0:02:02]} Qxd5 {[%emt 0:00:19]} 40. Rxg7+ {[%emt 0:01:56]} Kxg7 {[%emt 0:00:14]} 41. Qc7+ {[%emt 0:00:01]} Rd7 {[%emt 0:00:26]} 42. Qxb8 {[%emt 0:00:02]} Rf7 {[%emt 0:00:32]} 43. Kg1 {[%emt 0:00:59]} Qd1+ {[%emt 0:00:25]} 44. Kh2 {[%emt 0:01:01]} Qd5 {[%emt 0:01:56]} 45. Kg1 {[%emt 0:00:34]} Qd1+ {[%emt 0:00:10]} 46. Kg2 {[%emt 0:00:50]} Qd5+ {[%emt 0:00:34]} 47. Kg1 {[%emt 0:00:29]} 1/2-1/2

[Event "Marshall CC FIDE Premier February 2024"]
[Site "New York"]
[Date "2024.02.03"]
[Round "1.3"]
[White "Marsh, James J"]
[Black "Zeltsan, Joseph"]
[Result "0-1"]
[ECO "A17"]
[WhiteElo "1987"]
[BlackElo "2439"]
[Annotator "RC"]
[PlyCount "76"]
[EventDate "2024.02.02"]
[EventType "swiss"]
[EventCountry "USA"]
[SourceTitle "playchess.com"]
[Source "ChessBase"]
[SourceQuality "1"]
[TimeControl "5400+30"]

1. Nf3 {[%emt 0:00:04]} Nf6 {[%emt 0:00:21]} 2. c4 {[%emt 0:00:10]} e6 {[%emt 0:00:19]} 3. e3 {[%emt 1:31:46]} d5 {[%emt 0:00:07]} 4. Nc3 {[%emt 0:00:00]} b6 {[%emt 0:01:33]} 5. cxd5 {[%emt 0:00:00]} exd5 {[%emt 0:00:06]} 6. g3 {[%emt 0:00:00]} Bd6 {[%emt 0:06:42]} 7. Bg2 {[%emt 0:00:00]} O-O {[%emt 0:00:10]} 8. O-O {[%emt 0:00:00]} Bb7 {[%emt 0:10:42]} 9. b3 {[%emt 0:00:00]} Nbd7 {[%emt 0:02:17]} 10. Bb2 {[%emt 0:00:00]} a6 {[%emt 0:00:23]} 11. Rc1 {[%emt 0:00:00]} Re8 {[%emt 0:00:27]} 12. Re1 {[%emt 0:00:00]} Rb8 {[%emt 0:06:44]} 13. d3 {[%emt 0:00:00]} c5 {[%emt 0:04:46]} 14. d4 {[%emt 0:00:00]} c4 {[%emt 0:01:05]} 15. a4 {[%emt 0:00:00]} Bb4 {[%emt 0:16:20]} 16. Nd2 {[%emt 0:00:00]} b5 {[%emt 0:02:32]} 17. axb5 {[%emt 0:00:00]} Bxc3 {[%emt 0:00:24]} 18. Bxc3 {[%emt 0:00:00]} axb5 {[%emt 0:00:01]} 19. Bb4 {[%emt 0:00:00]} Qb6 {[%emt 0:05:42]} 20. Qc2 {[%emt 0:00:00]} Rbc8 {[%emt 0:05:10]} 21. Bh3 {[%emt 0:00:00]} h5 {[%emt 0:02:56]} 22. Nf3 {[%emt 0:00:00]} Ng4 {[%emt 0:01:05]} 23. Qf5 {[%emt 0:00:00]} Ndf6 {[%emt 0:02:32]} 24. Ne5 {[%emt 0:00:00]} Ra8 {[%emt 0:07:45]} 25. Nxg4 {[%emt 0:00:00]} hxg4 {[%emt 0:00:36]} 26. Bg2 {[%emt 0:00:00]} Ra2 {[%emt 0:02:44]} 27. Qb1 {[%emt 0:00:00]} Rea8 {[%emt 0:01:03]} 28. Rc2 {[%emt 0:00:00]} R2a6 {[%emt 0:03:57]} 29. Rec1 {[%emt 0:00:00]} Bc8 {[%emt 0:01:43]} 30. Rb2 {[%emt 0:00:00]} Qd8 {[%emt 0:01:06]} 31. bxc4 {[%emt 0:00:23]} bxc4 {[%emt 0:00:15]} 32. Bc5 {[%emt 0:00:40]} Be6 {[%emt 0:01:07]} 33. Rb5 {[%emt 0:04:47]} g6 {[%emt 0:01:52]} 34. Bb6 {[%emt 0:02:26]} Qe8 {[%emt 0:01:20]} 35. Rb4 {[%emt 0:03:54]} Bf5 {[%emt 0:00:19]} 36. Qb2 {[%emt 0:00:27]} Ra2 {[%emt 0:00:02]} 37. Qc3 {[%emt 0:00:31]} Ne4 {[%emt 0:01:02]} 38. Bxe4 {[%emt 0:00:40]} Qxe4 {[%emt 0:00:03]} 0-1

[Event "Marshall CC FIDE Premier February 2024"]
[Site "New York"]
[Date "2024.02.03"]
[Round "1.4"]
[White "Williams, Justus"]
[Black "Gaw, Chloe"]
[Result "1-0"]
[ECO "D20"]
[WhiteElo "2382"]
[BlackElo "1928"]
[Annotator "RC"]
[PlyCount "71"]
[EventDate "2024.02.02"]
[EventType "swiss"]
[EventCountry "USA"]
[SourceTitle "playchess.com"]
[Source "ChessBase"]
[SourceQuality "1"]
[TimeControl "5400+30"]

1. d4 {[%emt 0:03:04]} d5 {[%emt 0:00:03]} 2. c4 {[%emt 0:00:36]} dxc4 {[%emt 0:00:08]} 3. e4 {[%emt 0:00:15]} e5 {[%emt 0:00:06]} 4. Nf3 {[%emt 0:00:12]} exd4 {[%emt 0:00:08]} 5. Bxc4 {[%emt 0:00:07]} Nc6 {[%emt 0:00:09]} 6. O-O {[%emt 0:00:25]} Be6 {[%emt 0:00:25]} 7. Bxe6 {[%emt 0:03:12]} fxe6 {[%emt 0:00:02]} 8. Qb3 {[%emt 0:00:10]} Qd7 {[%emt 0:00:18]} 9. Qxb7 {[%emt 0:01:24]} Rb8 {[%emt 0:00:04]} 10. Qa6 {[%emt 0:00:08]} Bd6 {[%emt 0:00:14]} 11. a3 {[%emt 0:03:54]} Nge7 {[%emt 0:02:39]} 12. Nbd2 {[%emt 0:02:24]} e5 {[%emt 0:04:32]} 13. Qc4 {[%emt 0:05:47]} Nd8 {[%emt 0:03:24]} 14. b4 {[%emt 0:01:42]} Nc8 {[%emt 0:02:51]} 15. Qa2 {[%emt 0:03:30]} Nb6 {[%emt 0:01:26]} 16. Nb3 {[%emt 0:01:41]} Ne6 {[%emt 0:03:44]} 17. Nc5 {[%emt 0:01:20]} Bxc5 {[%emt 0:07:04]} 18. bxc5 {[%emt 0:04:08]} Nxc5 {[%emt 0:02:40]} 19. Nxe5 {[%emt 0:00:14]} Qe6 {[%emt 0:02:35]} 20. Qxe6+ {[%emt 0:00:23]} Nxe6 {[%emt 0:00:03]} 21. Nc6 {[%emt 0:00:14]} Ra8 {[%emt 0:03:19]} 22. Rd1 {[%emt 0:03:37]} O-O {[%emt 0:04:33]} 23. Nxd4 {[%emt 0:01:34]} Rfd8 {[%emt 0:09:37]} 24. Be3 {[%emt 0:00:11]} Nc5 {[%emt 0:02:08]} 25. f3 {[%emt 0:02:15]} Nc4 {[%emt 0:02:43]} 26. Bg5 {[%emt 0:03:25]} Rd7 {[%emt 0:04:48]} 27. Nc6 {[%emt 0:09:04]} h6 {[%emt 0:11:06]} 28. Rxd7 {[%emt 0:00:42]} Nxd7 {[%emt 0:00:09]} 29. Bf4 {[%emt 0:00:45]} Kf7 {[%emt 0:02:01]} 30. Rd1 {[%emt 0:02:01]} Ke8 {[%emt 0:02:17]} 31. Nd4 {[%emt 0:01:40]} Nf8 {[%emt 0:02:29]} 32. Rc1 {[%emt 0:02:11]} Nxa3 {[%emt 0:03:35]} 33. Rc5 {[%emt 0:44:45]} c6 34. Rxc6 {[%emt 0:00:00]} a5 {[%emt 0:06:17]} 35. Rc7 {[%emt 0:00:00]} Nb1 {[%emt 0:01:04]} 36. Bd6 {[%emt 0:00:00]} 1-0

[Event "Marshall CC FIDE Premier February 2024"]
[Site "New York"]
[Date "2024.02.03"]
[Round "1.5"]
[White "Kozower, Ethan"]
[Black "Pressman, Leif"]
[Result "0-1"]
[ECO "C47"]
[WhiteElo "1904"]
[BlackElo "2258"]
[Annotator "RC"]
[PlyCount "144"]
[EventDate "2024.02.02"]
[EventType "swiss"]
[EventCountry "USA"]
[SourceTitle "playchess.com"]
[Source "ChessBase"]
[SourceQuality "1"]
[TimeControl "5400+30"]

1. e4 {[%emt 0:00:16]} e5 {[%emt 0:18:49]} 2. Nf3 {[%emt 0:00:08]} Nc6 {[%emt 0:01:23]} 3. Nc3 {[%emt 0:00:18]} Nf6 {[%emt 0:00:18]} 4. h3 {[%emt 0:00:23]} Bd6 {[%emt 0:04:30]} 5. Bc4 {[%emt 0:03:55]} Bc5 {[%emt 0:02:47]} 6. O-O {[%emt 0:01:18]} d6 {[%emt 0:00:39]} 7. a3 {[%emt 0:07:30]} h6 {[%emt 0:02:29]} 8. Na4 {[%emt 0:13:59]} Nxe4 {[%emt 0:05:34]} 9. d3 {[%emt 0:01:06]} Nxf2 {[%emt 0:04:40]} 10. Rxf2 {[%emt 0:00:05]} Bxf2+ {[%emt 0:00:04]} 11. Kxf2 {[%emt 0:00:05]} d5 {[%emt 0:03:18]} 12. Bb5 {[%emt 0:02:02]} O-O {[%emt 0:03:13]} 13. Bxc6 {[%emt 0:05:18]} bxc6 {[%emt 0:00:02]} 14. Nc5 {[%emt 0:00:02]} Qd6 {[%emt 0:07:32]} 15. b4 {[%emt 0:01:38]} f5 {[%emt 0:04:42]} 16. Qe1 {[%emt 0:16:03]} e4 {[%emt 0:02:11]} 17. Nd4 {[%emt 0:03:16]} a5 {[%emt 0:07:43]} 18. Bb2 {[%emt 0:03:15]} axb4 {[%emt 0:01:39]} 19. axb4 {[%emt 0:00:09]} Rxa1 {[%emt 0:00:34]} 20. Bxa1 {[%emt 0:02:36]} Qg6 {[%emt 0:07:29]} 21. Qc3 {[%emt 0:09:20]} Rf6 {[%emt 0:05:38]} 22. Qd2 {[%emt 0:09:50]} f4 {[%emt 0:00:48]} 23. dxe4 {[%emt 0:00:48]} dxe4 {[%emt 0:00:51]} 24. Qe2 {[%emt 0:01:10]} Qg3+ {[%emt 0:04:06]} 25. Kg1 {[%emt 0:04:30]} f3 {[%emt 0:00:24]} 26. Qf2 {[%emt 0:00:11]} Qxf2+ {[%emt 0:00:51]} 27. Kxf2 {[%emt 0:00:02]} e3+ {[%emt 0:00:16]} 28. Kf1 {[%emt 0:01:16]} e2+ {[%emt 0:01:41]} 29. Nxe2 {[%emt 0:00:29]} fxe2+ {[%emt 0:00:04]} 30. Kxe2 {[%emt 0:00:02]} Rg6 {[%emt 0:03:46]} 31. Kf2 {[%emt 0:03:30]} Rd6 {[%emt 0:01:02]} 32. Ke2 {[%emt 0:01:19]} Bf5 {[%emt 0:00:24]} 33. c4 {[%emt 0:01:02]} Be6 {[%emt 0:00:17]} 34. Be5 {[%emt 0:00:44]} Bxc4+ {[%emt 0:00:03]} 35. Ke3 {[%emt 0:00:49]} Rd1 {[%emt 0:01:13]} 36. Bxc7 {[%emt 0:00:20]} Bd5 {[%emt 0:00:55]} 37. g3 {[%emt 0:00:26]} Rb1 {[%emt 0:00:22]} 38. Nd3 {[%emt 0:02:23]} Bc4 {[%emt 0:01:19]} 39. Ne5 {[%emt 0:01:01]} Rxb4 {[%emt 0:01:17]} 40. Nxc6 {[%emt 0:00:05]} Rb3+ {[%emt 0:00:32]} 41. Kd4 {[%emt 0:00:17]} Bf1 {[%emt 0:00:45]} 42. h4 {[%emt 0:00:55]} Rd3+ {[%emt 0:00:02]} 43. Kc5 {[%emt 0:02:40]} Bg2 {[%emt 0:00:06]} 44. Nd4 {[%emt 0:00:26]} Rc3+ {[%emt 0:00:06]} 45. Kb6 {[%emt 0:00:10]} Kf7 {[%emt 0:00:38]} 46. Be5 {[%emt 0:00:27]} Rc1 {[%emt 0:02:06]} 47. Bf4 {[%emt 0:00:23]} Rc4 {[%emt 0:00:53]} 48. Nb5 {[%emt 0:00:38]} Rc6+ {[%emt 0:04:29]} 49. Ka5 {[%emt 0:00:21]} Kf6 {[%emt 0:00:00]} 50. Kb4 {[%emt 0:00:32]} Bf1 {[%emt 0:00:00]} 51. Nc3 {[%emt 0:01:48]} Kf5 {[%emt 0:01:30]} 52. Nd5 {[%emt 0:00:18]} Ke4 {[%emt 0:00:00]} 53. Nc3+ {[%emt 0:01:00]} Kd4 {[%emt 0:00:00]} 54. Nd1 {[%emt 0:00:54]} Rb6+ {[%emt 0:00:00]} 55. Ka4 {[%emt 0:01:16]} Rb7 {[%emt 0:00:00]} 56. Ne3 {[%emt 0:00:11]} Bd3 {[%emt 0:00:00]} 57. Ng4 {[%emt 0:00:20]} h5 {[%emt 0:00:27]} 58. Ne3 {[%emt 0:01:07]} Ke4 {[%emt 0:00:51]} 59. Bg5 {[%emt 0:00:31]} Kf3 {[%emt 0:00:17]} 60. Bf4 {[%emt 0:00:14]} Rf7 {[%emt 0:00:38]} 61. Nd5 {[%emt 0:00:23]} Be4 {[%emt 0:00:38]} 62. Nc7 {[%emt 0:00:26]} Rxf4 {[%emt 0:01:22]} 63. gxf4 {[%emt 0:00:03]} g6 {[%emt 0:00:38]} 64. Ne6 {[%emt 0:01:58]} Bf5 {[%emt 0:00:06]} 65. Nd4+ {[%emt 0:01:53]} Kg4 {[%emt 0:00:35]} 66. Kb3 {[%emt 0:00:09]} Kxh4 {[%emt 0:00:05]} 67. Kc3 {[%emt 0:00:04]} Kg3 {[%emt 0:00:09]} 68. Kd2 {[%emt 0:00:09]} Kf2 {[%emt 0:00:33]} 69. Nb5 {[%emt 0:00:42]} h4 {[%emt 0:00:15]} 70. Nd6 {[%emt 0:00:05]} h3 {[%emt 0:00:13]} 71. Nf7 {[%emt 0:00:09]} h2 {[%emt 0:00:07]} 72. Ne5 {[%emt 0:00:14]} h1=Q {[%emt 0:00:15]} 0-1

[Event "Marshall CC FIDE Premier February 2024"]
[Site "New York"]
[Date "2024.02.03"]
[Round "2.1"]
[White "Bortnyk, Mykola"]
[Black "Lin, Bryan Enming"]
[Result "1-0"]
[ECO "E62"]
[WhiteElo "2421"]
[BlackElo "2102"]
[Annotator "RC"]
[PlyCount "105"]
[EventDate "2024.02.02"]
[EventType "swiss"]
[EventCountry "USA"]
[SourceTitle "playchess.com"]
[Source "ChessBase"]
[SourceQuality "1"]
[TimeControl "5400+30"]

1. d4 {[%emt 0:08:09]} Nf6 {[%emt 0:00:09]} 2. Nf3 {[%emt 0:00:30]} g6 {[%emt 0:00:09]} 3. c4 {[%emt 0:00:09]} Bg7 {[%emt 0:00:13]} 4. g3 {[%emt 0:00:23]} O-O {[%emt 0:01:00]} 5. Bg2 {[%emt 0:00:23]} d6 {[%emt 0:00:17]} 6. O-O {[%emt 0:00:07]} Nc6 {[%emt 0:00:06]} 7. Nc3 {[%emt 0:00:11]} Bg4 {[%emt 0:00:10]} 8. h3 {[%emt 0:03:09]} Bxf3 {[%emt 0:00:08]} 9. Bxf3 {[%emt 0:00:30]} Nd7 {[%emt 0:00:19]} 10. e3 {[%emt 0:02:34]} e5 {[%emt 0:00:30]} 11. dxe5 {[%emt 0:00:06]} Ndxe5 {[%emt 0:02:50]} 12. Bd5 {[%emt 0:00:19]} Ne7 {[%emt 0:03:27]} 13. Bxb7 {[%emt 0:01:55]} Rb8 {[%emt 0:00:11]} 14. Bg2 {[%emt 0:00:39]} Nxc4 {[%emt 0:00:08]} 15. Qe2 {[%emt 0:00:04]} Nb6 {[%emt 0:01:26]} 16. a4 {[%emt 0:07:02]} Nd7 {[%emt 0:02:38]} 17. Nb5 {[%emt 0:03:38]} a6 {[%emt 0:00:45]} 18. Nd4 {[%emt 0:00:10]} c5 {[%emt 0:00:54]} 19. Nc6 {[%emt 0:00:56]} Nxc6 {[%emt 0:00:14]} 20. Bxc6 {[%emt 0:00:02]} Rb6 {[%emt 0:00:58]} 21. Bg2 {[%emt 0:00:03]} Qc7 {[%emt 0:00:51]} 22. Rd1 {[%emt 0:00:23]} Ne5 {[%emt 0:04:47]} 23. Bd2 {[%emt 0:03:17]} Rxb2 {[%emt 0:02:58]} 24. Qxa6 {[%emt 0:00:09]} c4 {[%emt 0:07:38]} 25. Rac1 {[%emt 0:02:53]} Rb6 {[%emt 0:03:19]} 26. Qa5 {[%emt 0:01:03]} Qb8 {[%emt 0:04:57]} 27. Be4 {[%emt 0:08:28]} Rc8 {[%emt 0:03:37]} 28. Rb1 {[%emt 0:03:07]} Rb3 {[%emt 0:01:12]} 29. Kg2 {[%emt 0:03:42]} Rc5 {[%emt 0:02:33]} 30. Qa6 {[%emt 0:00:29]} f5 {[%emt 0:01:55]} 31. Bc2 {[%emt 0:00:47]} Rxb1 {[%emt 0:02:30]} 32. Rxb1 {[%emt 0:00:03]} Qc7 {[%emt 0:01:12]} 33. Qa8+ {[%emt 0:00:58]} Bf8 {[%emt 0:00:06]} 34. e4 {[%emt 0:01:01]} Qc6 {[%emt 0:01:52]} 35. Rb8 {[%emt 0:02:28]} Qxa8 {[%emt 0:00:07]} 36. Rxa8 {[%emt 0:00:05]} Kf7 {[%emt 0:07:46]} 37. a5 {[%emt 0:00:03]} Nc6 {[%emt 0:05:39]} 38. a6 {[%emt 0:00:56]} c3 {[%emt 0:04:11]} 39. Be3 {[%emt 0:00:13]} Ra5 {[%emt 0:00:25]} 40. Bb3+ {[%emt 0:00:06]} Kg7 {[%emt 0:00:06]} 41. Bd5 {[%emt 0:00:15]} Nb4 {[%emt 0:01:04]} 42. Bd4+ {[%emt 0:00:06]} Kh6 {[%emt 0:00:09]} 43. Bxc3 {[%emt 0:00:13]} Rxa6 {[%emt 0:00:14]} 44. Rxf8 {[%emt 0:00:19]} Nxd5 {[%emt 0:00:10]} 45. exd5 {[%emt 0:00:02]} Ra3 {[%emt 0:37:10]} 46. Rc8 {[%emt 0:00:05]} Kh5 {[%emt 0:00:00]} 47. Rc6 {[%emt 0:00:16]} g5 {[%emt 0:00:00]} 48. Bb4 {[%emt 0:00:08]} Rd3 {[%emt 0:00:00]} 49. Bxd6 {[%emt 0:00:15]} f4 {[%emt 0:00:00]} 50. g4+ {[%emt 0:00:57]} Kh4 {[%emt 0:00:00]} 51. Be5 {[%emt 0:00:54]} h5 {[%emt 0:00:00]} 52. Rh6 {[%emt 0:00:03]} Rxh3 {[%emt 0:00:00]} 53. Rxh5+ {[%emt 0:00:05]} 1-0